bitfinex/quotes_BTCUSD_20250406
["timestamp","ask_amount","ask_price","bid_price","bid_amount"]
[1743974705379,0.35223663,79508.0,79507.0,6.7e-07]
[1743974705779,0.36223663,79508.0,79507.0,6.7e-07]
[1743974705985,0.4851396,79508.0,79507.0,6.7e-07]
[1743974706547,0.56449274,79508.0,79507.0,6.7e-07]
[1743974706730,0.4811396,79508.0,79507.0,6.7e-07]
[1743974706970,0.4911396,79508.0,79507.0,6.7e-07]
[1743974707145,0.4851396,79508.0,79507.0,6.7e-07]
[1743974708118,0.5101396,79508.0,79507.0,6.7e-07]
[1743974708316,0.5151396,79508.0,79507.0,6.7e-07]
[1743974708519,0.63803728,79508.0,79507.0,6.7e-07]
[1743974708714,0.60421,79482.0,79481.0,3e-08]
[1743974708947,0.012582,79478.0,79477.0,6.3e-07]
[1743974709292,0.604223,79478.0,79477.0,0.0004539]
[1743974709422,0.85002365,79478.0,79477.0,9e-07]
[1743974710185,1.00502365,79478.0,79477.0,9e-07]
[1743974710366,0.264299,79455.0,79454.0,0.000335]
[1743974710536,0.453259,79455.0,79454.0,0.000335]
[1743974710739,0.793259,79455.0,79454.0,0.000335]
[1743974711502,0.352585,79454.0,79453.0,1e-06]
[1743974711713,0.47548797,79454.0,79453.0,1e-06]
[1743974711914,0.352585,79454.0,79453.0,1e-06]
[1743974712328,0.541585,79454.0,79453.0,1e-06]
[1743974712682,0.54203815,79454.0,79453.0,1e-06]
[1743974712889,0.54703815,79454.0,79453.0,1e-06]
[1743974713093,0.65401463,79454.0,79453.0,1e-06]
[1743974713294,0.54703815,79454.0,79453.0,1e-06]
[1743974713697,0.54203815,79454.0,79453.0,1e-06]
[1743974714018,0.55203815,79454.0,79453.0,1e-06]
[1743974715252,0.54203815,79454.0,79453.0,1e-06]
[1743974715422,0.54703815,79454.0,79453.0,1e-06]
[1743974715923,0.54203815,79454.0,79453.0,1e-06]
[1743974716096,0.01803815,79454.0,79453.0,1e-06]
[1743974716619,0.20195815,79454.0,79453.0,1e-06]
[1743974716823,0.20695815,79454.0,79453.0,1e-06]
[1743974717231,0.33485583,79454.0,79453.0,1e-06]
[1743974717771,0.21195815,79454.0,79453.0,1e-06]
[1743974718335,0.15695815,79454.0,79453.0,1e-06]
[1743974718513,0.15595815,79454.0,79453.0,1e-06]
[1743974718712,0.16854315,79454.0,79453.0,1e-06]
[1743974719079,0.16454315,79454.0,79453.0,1e-06]
[1743974719275,0.017585,79454.0,79453.0,1e-06]
[1743974719479,0.01,79454.0,79453.0,0.17260397]
[1743974719681,0.251711,79456.0,79453.0,0.23484482]
[1743974719995,0.02,79491.0,79454.0,0.13744382]
[1743974720198,0.251638,79479.0,79473.0,0.012582]
[1743974720383,0.012582,79477.0,79474.0,0.12290297]
[1743974721280,0.012581,79481.0,79474.0,0.13548497]
[1743974721440,0.453024,79490.0,79478.0,0.02712285]
[1743974721651,0.251616,79486.0,79479.0,0.17190297]
[1743974721863,0.0125127,79512.0,79479.0,0.17190297]
[1743974721864,0.012579,79496.0,79488.0,0.01258]
[1743974722083,0.251607,79489.0,79485.0,0.01258]
[1743974722318,0.02,79491.0,79486.0,0.12290297]
[1743974722522,0.02,79491.0,79490.0,0.264183]
[1743974722699,0.02,79491.0,79490.0,0.40162682]
[1743974722924,0.0001675,79540.0,79512.0,0.012576]
[1743974723054,0.014574,79529.0,79522.0,0.012575]
[1743974723272,0.1888,79528.0,79524.0,0.012574]
[1743974723475,0.1888,79528.0,79524.0,0.12290297]
[1743974723676,0.1888,79528.0,79521.0,0.012575]
[1743974723677,0.1888,79528.0,79525.0,0.12290297]
[1743974724150,0.1888,79528.0,79527.0,0.012574]
[1743974724355,0.1888,79528.0,79527.0,0.13547697]
[1743974724555,0.002,79529.0,79528.0,0.01454085]
[1743974724668,0.002,79529.0,79528.0,0.40150082]
[1743974725510,0.0001675,79542.0,79539.0,0.26402]
[1743974725686,0.0001675,79542.0,79539.0,0.40146382]
[1743974726304,0.0001675,79542.0,79539.0,0.45046382]
[1743974726700,0.0001675,79542.0,79539.0,0.18644382]
[1743974726903,0.0127395,79540.0,79539.0,0.18644382]
[1743974727325,0.0127395,79540.0,79539.0,0.12390297]
[1743974728424,0.0127395,79540.0,79539.0,0.12290297]
[1743974728852,0.0127395,79540.0,79539.0,0.12390297]
[1743974729221,0.0127395,79540.0,79539.0,0.12290297]
[1743974729708,0.0127395,79540.0,79539.0,0.12390297]
[1743974729848,0.0127395,79540.0,79539.0,0.001]
[1743974730192,0.2012595,79540.0,79539.0,0.001]
[1743974731022,0.2012595,79540.0,79525.0,0.00013685]
[1743974731023,0.264064,79526.0,79525.0,0.00013685]
[1743974732752,0.269064,79526.0,79525.0,0.00013685]
[1743974733413,0.604064,79526.0,79525.0,0.00013685]
[1743974733597,0.609064,79526.0,79525.0,0.00013685]
[1743974734867,0.604064,79526.0,79525.0,0.00013685]
[1743974735117,0.609064,79526.0,79525.0,0.00013685]
[1743974735671,0.604064,79526.0,79525.0,0.00013685]
[1743974735909,0.6971331,79526.0,79525.0,0.00013685]
[1743974736070,0.7021331,79526.0,79525.0,0.00013685]
[1743974736287,0.72696697,79526.0,79525.0,8.5e-07]
[1743974736638,0.90696697,79526.0,79525.0,8.5e-07]
[1743974736840,0.26421,79482.0,79481.0,0.002]
[1743974737016,0.26421,79482.0,79481.0,0.00213688]
[1743974737242,0.60421,79482.0,79481.0,0.00213688]
[1743974738656,0.72711297,79482.0,79481.0,8.8e-07]
[1743974739395,0.73211297,79482.0,79481.0,8.8e-07]
[1743974739598,0.73711297,79482.0,79481.0,8.8e-07]
[1743974740048,0.85501065,79482.0,79481.0,8.8e-07]
[1743974740250,0.85001065,79482.0,79481.0,8.8e-07]
[1743974740488,0.60921,79482.0,79481.0,8.8e-07]
[1743974740702,0.80253,79482.0,79481.0,8.8e-07]
[1743974740816,0.61421,79482.0,79481.0,8.8e-07]
[1743974741030,0.80253,79482.0,79481.0,8.8e-07]
[1743974741427,0.46253,79482.0,79481.0,8.8e-07]
[1743974741630,0.79753,79482.0,79481.0,8.8e-07]
[1743974741857,0.79253,79482.0,79481.0,8.8e-07]
[1743974742059,0.79753,79482.0,79481.0,8.8e-07]
[1743974742266,0.80253,79482.0,79481.0,8.8e-07]
[1743974742463,0.79253,79482.0,79481.0,8.8e-07]
[1743974742864,0.79753,79482.0,79481.0,8.8e-07]
[1743974743274,0.80253,79482.0,79481.0,8.8e-07]
[1743974743443,0.61421,79482.0,79481.0,8.8e-07]
[1743974743648,0.79749,79482.0,79481.0,8.8e-07]
[1743974743866,0.60921,79482.0,79481.0,8.8e-07]
[1743974744068,0.79749,79482.0,79481.0,8.8e-07]
[1743974744422,0.60921,79482.0,79481.0,8.8e-07]
[1743974744623,0.79749,79482.0,79481.0,8.8e-07]
[1743974744745,0.79249,79482.0,79481.0,8.8e-07]
[1743974744946,0.45249,79482.0,79481.0,8.8e-07]
[1743974745168,0.41249,79482.0,79481.0,8.8e-07]
[1743974745372,0.231791,79482.0,79481.0,8.8e-07]
[1743974745582,0.226791,79482.0,79481.0,8.8e-07]
[1743974745793,0.231791,79482.0,79481.0,8.8e-07]
[1743974745992,0.236791,79482.0,79481.0,8.8e-07]
[1743974746219,0.26921,79482.0,79481.0,0.1374447]
[1743974746422,0.26421,79482.0,79481.0,0.1374447]
[1743974746602,0.26921,79482.0,79481.0,0.1374447]
[1743974746847,0.01,79482.0,79481.0,0.1374447]
[1743974748009,0.022581,79482.0,79481.0,0.1374447]
[1743974749628,0.27421,79482.0,79481.0,0.1374447]
[1743974750074,0.27421,79482.0,79481.0,0.12290385]
[1743974751399,0.27421,79482.0,79481.0,8.8e-07]
[1743974751597,0.26921,79482.0,79481.0,8.8e-07]
[1743974751956,0.27321,79482.0,79481.0,8.8e-07]
[1743974752411,0.26921,79482.0,79481.0,8.8e-07]
[1743974752640,0.26421,79482.0,79481.0,8.8e-07]
[1743974752811,0.27221,79482.0,79481.0,8.8e-07]
[1743974753299,0.26821,79482.0,79481.0,8.8e-07]
[1743974754148,0.26421,79482.0,79481.0,8.8e-07]
[1743974754277,0.26921,79482.0,79481.0,8.8e-07]
[1743974754489,0.27421,79482.0,79481.0,8.8e-07]
[1743974754684,0.26921,79482.0,79481.0,8.8e-07]
[1743974754889,0.26421,79482.0,79481.0,8.8e-07]
[1743974755087,0.60921,79482.0,79481.0,8.8e-07]
[1743974755907,0.73211297,79482.0,79481.0,8.8e-07]
[1743974756275,0.73711297,79482.0,79481.0,8.8e-07]
[1743974756456,0.264287,79459.0,79458.0,6.8e-07]
[1743974756683,0.264287,79459.0,79449.0,4.8e-07]
[1743974756684,0.012586,79450.0,79449.0,4.8e-07]
[1743974756893,0.264316,79450.0,79449.0,4.8e-07]
[1743974758253,0.83294167,79450.0,79449.0,4.8e-07]
[1743974758520,0.83794167,79450.0,79449.0,4.8e-07]
[1743974758681,0.83794167,79450.0,79421.0,0.0023348]
[1743974758682,0.264383,79430.0,79429.0,2.8e-07]
[1743974758852,0.452383,79430.0,79429.0,2.8e-07]
[1743974760001,0.45251882,79430.0,79429.0,2.8e-07]
[1743974761522,0.46251882,79430.0,79429.0,2.8e-07]
[1743974761728,0.9254165,79430.0,79429.0,2.8e-07]
[1743974761932,0.9204165,79430.0,79429.0,2.8e-07]
[1743974762105,0.9254165,79430.0,79429.0,2.8e-07]
[1743974762340,0.80251882,79430.0,79429.0,2.8e-07]
[1743974762531,0.46251882,79430.0,79429.0,2.8e-07]
[1743974763445,0.27451882,79430.0,79429.0,2.8e-07]
[1743974764025,0.26951882,79430.0,79429.0,2.8e-07]
[1743974764228,0.26451882,79430.0,79429.0,2.8e-07]
[1743974764422,0.27451882,79430.0,79429.0,2.8e-07]
[1743974764624,0.26951882,79430.0,79429.0,2.8e-07]
[1743974764862,0.26451882,79430.0,79429.0,2.8e-07]
[1743974765160,0.26951882,79430.0,79429.0,2.8e-07]
[1743974765480,0.7374165,79430.0,79429.0,2.8e-07]
[1743974765882,0.61451882,79430.0,79429.0,2.8e-07]
[1743974767063,0.60951882,79430.0,79429.0,2.8e-07]
[1743974767633,0.60451882,79430.0,79429.0,2.8e-07]
[1743974768229,0.73742179,79430.0,79429.0,2.8e-07]
[1743974768564,0.73242179,79430.0,79429.0,2.8e-07]
[1743974768771,0.85031947,79430.0,79429.0,2.8e-07]
[1743974768911,0.85531947,79430.0,79429.0,2.8e-07]
[1743974769110,0.86031947,79430.0,79429.0,2.8e-07]
[1743974770099,0.604416,79420.0,79419.0,6.8e-07]
[1743974770273,0.7408845,79420.0,79419.0,6.8e-07]
[1743974770481,0.7458845,79420.0,79419.0,6.8e-07]
[1743974770824,0.7458845,79420.0,79391.0,6.5e-07]
[1743974770825,0.604509,79392.0,79391.0,6.5e-07]
[1743974770950,0.792349,79392.0,79391.0,6.5e-07]
[1743974771356,0.91525197,79392.0,79391.0,6.5e-07]
[1743974772053,0.92025197,79392.0,79391.0,6.5e-07]
[1743974772394,0.92538769,79392.0,79391.0,6.5e-07]
[1743974772796,0.93004326,79392.0,79391.0,6.5e-07]
[1743974773269,0.26464472,79392.0,79391.0,6.5e-07]
[1743974773741,0.00513572,79392.0,79391.0,0.40195647]
[1743974773970,0.00513572,79392.0,79391.0,6.5e-07]
[1743974774198,0.01773072,79392.0,79391.0,6.5e-07]
[1743974774424,0.02273072,79392.0,79391.0,6.5e-07]
[1743974774600,0.01773072,79392.0,79391.0,6.5e-07]
[1743974774776,0.02273072,79392.0,79391.0,6.5e-07]
[1743974774978,0.01773072,79392.0,79391.0,6.5e-07]
[1743974775364,0.02273072,79392.0,79391.0,6.5e-07]
[1743974775575,0.01773072,79392.0,79391.0,6.5e-07]
[1743974776830,0.02273072,79392.0,79391.0,6.5e-07]
[1743974777384,0.01773072,79392.0,79391.0,6.5e-07]
[1743974777765,0.02273072,79392.0,79391.0,6.5e-07]
[1743974780713,0.01273072,79392.0,79391.0,6.5e-07]
[1743974780927,0.02273072,79392.0,79391.0,6.5e-07]
[1743974781124,0.01773072,79392.0,79391.0,6.5e-07]
[1743974781973,0.02273072,79392.0,79391.0,6.5e-07]
[1743974782448,0.01773072,79392.0,79391.0,6.5e-07]
[1743974783175,0.01273072,79392.0,79391.0,6.5e-07]
[1743974783603,0.01773072,79392.0,79391.0,6.5e-07]
[1743974783748,0.02273072,79392.0,79391.0,6.5e-07]
[1743974784157,0.01773072,79392.0,79391.0,6.5e-07]
[1743974784585,0.46137079,79392.0,79391.0,6.5e-07]
[1743974784760,0.46637079,79392.0,79391.0,6.5e-07]
[1743974785109,0.57427376,79392.0,79391.0,6.5e-07]
[1743974785246,0.57927376,79392.0,79391.0,6.5e-07]
[1743974786259,0.58427376,79392.0,79391.0,6.5e-07]
[1743974786645,0.58927376,79392.0,79391.0,6.5e-07]
[1743974786856,0.57927376,79392.0,79391.0,6.5e-07]
[1743974787005,0.58927376,79392.0,79391.0,6.5e-07]
[1743974789646,0.58427376,79392.0,79391.0,6.5e-07]
[1743974790052,0.58927376,79392.0,79391.0,6.5e-07]
[1743974790473,0.57927376,79392.0,79391.0,6.5e-07]
[1743974790671,0.58427376,79392.0,79391.0,6.5e-07]
[1743974790895,0.58927376,79392.0,79391.0,6.5e-07]
[1743974791537,0.57927376,79392.0,79391.0,6.5e-07]
[1743974791706,0.58427376,79392.0,79391.0,6.5e-07]
[1743974792187,0.70287376,79392.0,79391.0,6.5e-07]
[1743974792324,0.70287376,79392.0,79369.0,0.000335]
[1743974792325,0.604583,79370.0,79369.0,6.5e-07]
[1743974792504,0.792143,79370.0,79369.0,6.5e-07]
[1743974793544,0.797143,79370.0,79369.0,6.5e-07]
[1743974793944,0.92004597,79370.0,79369.0,6.5e-07]
[1743974794156,0.92504597,79370.0,79369.0,6.5e-07]
[1743974794358,1.04650365,79370.0,79369.0,6.5e-07]
[1743974794774,1.05590669,79370.0,79369.0,6.5e-07]
[1743974795148,0.264616,79360.0,79359.0,9.5e-07]
[1743974795377,0.90751897,79360.0,79359.0,9.5e-07]
[1743974795568,1.03041665,79360.0,79359.0,9.5e-07]
[1743974796519,1.03055229,79360.0,79359.0,9.5e-07]
[1743974796667,1.21803229,79360.0,79359.0,9.5e-07]
[1743974796871,1.22303229,79360.0,79359.0,9.5e-07]
[1743974797111,0.60469,79338.0,79337.0,4.5e-07]
[1743974797312,0.60469,79338.0,79317.0,0.15768084]
[1743974797313,0.60471,79332.0,79331.0,4.5e-07]
[1743974797611,0.72761297,79332.0,79331.0,4.5e-07]
[1743974798440,0.75761297,79332.0,79331.0,4.5e-07]
[1743974798613,0.012609,79306.0,79305.0,2.4e-07]
[1743974798773,0.57513897,79306.0,79305.0,2.4e-07]
[1743974798979,1.03803665,79306.0,79305.0,2.4e-07]
[1743974799631,1.03803665,79306.0,79301.0,0.002]
[1743974799632,0.26481,79302.0,79301.0,2.4e-07]
[1743974799881,0.72771297,79302.0,79301.0,2.4e-07]
[1743974800091,0.72784844,79302.0,79301.0,2.4e-07]
[1743974800507,0.79242547,79302.0,79301.0,2.4e-07]
[1743974801175,0.60794547,79302.0,79301.0,2.4e-07]
[1743974801379,0.54318547,79302.0,79301.0,2.4e-07]
[1743974801791,0.00813547,79302.0,79301.0,0.25220324]
[1743974802171,0.00313547,79302.0,79301.0,0.31001324]
[1743974802370,0.00313547,79302.0,79301.0,0.44745706]
[1743974802781,0.00013547,79302.0,79301.0,0.44745706]
[1743974803181,0.00513547,79302.0,79301.0,0.44745706]
[1743974803361,0.012606,79324.0,79317.0,0.252152]
[1743974803565,0.012606,79326.0,79320.0,0.012607]
[1743974803769,0.18744,79328.0,79323.0,0.012606]
[1743974804088,0.252081,79340.0,79333.0,0.012605]
[1743974804291,0.012603,79340.0,79334.0,0.012604]
[1743974804813,0.264682,79340.0,79334.0,0.012604]
[1743974805034,0.18744,79347.0,79330.0,0.297311]
[1743974805035,0.012602,79351.0,79345.0,0.012603]
[1743974805313,0.252044,79351.0,79345.0,0.012603]
[1743974805548,0.252044,79351.0,79343.0,0.26467]
[1743974805549,0.264654,79349.0,79343.0,0.26467]
[1743974805684,0.264654,79349.0,79344.0,0.012603]
[1743974805886,0.1874,79354.0,79351.0,0.012602]
[1743974806104,0.26462,79359.0,79353.0,0.252037]
[1743974806301,0.25216247,79357.0,79353.0,0.012601]
[1743974806501,0.25216247,79357.0,79346.0,0.01454085]
[1743974806502,0.26476347,79357.0,79346.0,0.01454085]
[1743974806710,0.012603,79341.0,79331.0,0.01454085]
[1743974806895,0.012604,79339.0,79333.0,0.01454085]
[1743974807090,0.012604,79335.0,79334.0,0.12290297]
[1743974807308,0.264713,79331.0,79310.0,0.34]
[1743974807772,0.264722,79328.0,79320.0,0.01283405]
[1743974807912,0.26475,79320.0,79319.0,0.0452]
[1743974808109,0.26475,79320.0,79319.0,0.16810297]
[1743974808556,0.26475,79320.0,79319.0,0.18264382]
[1743974808754,0.26475,79320.0,79319.0,0.00045315]
[1743974809840,0.26475,79320.0,79319.0,0.00145315]
[1743974810372,0.26475,79320.0,79319.0,0.00045315]
[1743974810523,0.26575,79320.0,79319.0,0.00045315]
[1743974810997,0.26675,79320.0,79319.0,0.00045315]
[1743974811386,0.26575,79320.0,79319.0,0.00045315]
[1743974811771,0.26675,79320.0,79319.0,0.00045315]
[1743974812334,0.26575,79320.0,79319.0,0.00045315]
[1743974813047,0.26475,79320.0,79319.0,0.00045315]
[1743974813203,0.26775,79320.0,79319.0,0.00045315]
[1743974813408,0.26675,79320.0,79319.0,0.00045315]
[1743974814129,0.26775,79320.0,79319.0,0.00045315]
[1743974814531,0.26475,79320.0,79319.0,0.00045315]
[1743974814729,0.26775,79320.0,79319.0,0.00045315]
[1743974816197,0.26975,79320.0,79319.0,0.00045315]
[1743974816438,0.26775,79320.0,79319.0,0.00045315]
[1743974816792,0.27075,79320.0,79319.0,0.00045315]
[1743974816957,0.26475,79320.0,79319.0,0.00045315]
[1743974817164,0.26875,79320.0,79319.0,0.00045315]
[1743974817390,0.27175,79320.0,79319.0,0.00045315]
[1743974819658,0.26475,79320.0,79319.0,0.00045315]
[1743974820090,0.26775,79320.0,79319.0,0.00045315]
[1743974820291,0.27175,79320.0,79319.0,1.5e-07]
[1743974820711,0.6918735,79320.0,79319.0,1.5e-07]
[1743974821036,0.61175,79320.0,79319.0,1.5e-07]
[1743974821228,0.60875,79320.0,79319.0,1.5e-07]
[1743974821364,0.60475,79320.0,79319.0,1.5e-07]
[1743974821567,0.61175,79320.0,79319.0,1.5e-07]
[1743974822546,0.61175,79320.0,79299.0,0.0001675]
[1743974822547,0.264816,79300.0,79299.0,8.9e-07]
[1743974822697,0.264849,79290.0,79289.0,7.6e-07]
[1743974823468,0.26486,79287.0,79286.0,7.6e-07]
[1743974823699,0.012614,79272.0,79271.0,7.6e-07]
[1743974823901,0.264913,79271.0,79270.0,4.6e-07]
[1743974824724,0.605016,79240.0,79239.0,3.6e-07]
[1743974824926,0.792056,79240.0,79239.0,3.6e-07]
[1743974825318,0.265073,79223.0,79222.0,9.6e-07]
[1743974825518,0.452113,79223.0,79222.0,9.6e-07]
[1743974825691,0.26511,79212.0,79211.0,9.6e-07]
[1743974826141,0.252486,79212.0,79211.0,0.12290393]
[1743974826341,0.26511,79212.0,79211.0,9.6e-07]
[1743974827176,0.38801297,79212.0,79211.0,9.6e-07]
[1743974827378,0.26511,79212.0,79211.0,9.6e-07]
[1743974828164,0.67655362,79212.0,79211.0,9.6e-07]
[1743974828368,0.60511,79212.0,79211.0,9.6e-07]
[1743974828776,0.72801297,79212.0,79211.0,9.6e-07]
[1743974830283,0.73601297,79212.0,79211.0,9.6e-07]
[1743974830695,0.73601297,79212.0,79179.0,0.0002477]
[1743974830696,0.265218,79180.0,79179.0,6.6e-07]
[1743974830894,0.792258,79180.0,79179.0,6.6e-07]
[1743974831583,1.03805865,79180.0,79179.0,6.6e-07]
[1743974831779,1.25177309,79180.0,79179.0,6.6e-07]
[1743974832232,0.605311,79152.0,79151.0,6.6e-07]
[1743974832456,0.792391,79152.0,79151.0,6.6e-07]
[1743974834149,0.79284452,79152.0,79151.0,6.6e-07]
[1743974836215,0.91574749,79152.0,79151.0,6.6e-07]
[1743974836413,0.91974749,79152.0,79151.0,6.6e-07]
[1743974837639,0.91574749,79152.0,79151.0,6.6e-07]
[1743974837839,0.60576452,79152.0,79151.0,6.6e-07]
[1743974838015,0.79280452,79152.0,79151.0,6.6e-07]
[1743974838229,0.012637,79132.0,79122.0,0.252772]
[1743974838453,0.34045352,79152.0,79123.0,0.12543036]
[1743974838454,0.012636,79134.0,79123.0,0.12543036]
[1743974838798,0.252761,79126.0,79123.0,0.12290297]
[1743974838974,0.012638,79124.0,79123.0,0.12290297]
[1743974839277,0.265409,79124.0,79123.0,0.12290297]
[1743974839489,0.012636,79134.0,79128.0,0.012637]
[1743974839644,0.012636,79134.0,79126.0,0.252759]
[1743974839645,0.012636,79133.0,79129.0,0.12290297]
[1743974839845,0.252742,79132.0,79129.0,0.12290297]
[1743974840056,0.00045324,79133.0,79132.0,0.25274]
[1743974840256,0.00045324,79133.0,79132.0,0.40282082]
[1743974840993,0.00045324,79133.0,79132.0,0.45072082]
[1743974841183,0.012633,79155.0,79148.0,0.012634]
[1743974841184,0.012633,79154.0,79148.0,0.012634]
[1743974841374,0.012634,79151.0,79149.0,0.12290297]
[1743974841569,0.012633,79156.0,79150.0,0.265318]
[1743974841769,0.012633,79157.0,79151.0,0.12290297]
[1743974841953,0.012633,79157.0,79151.0,0.13553697]
[1743974842356,0.012632,79159.0,79153.0,0.012633]
[1743974842566,0.265291,79158.0,79154.0,0.12290297]
[1743974842768,0.003,79156.0,79154.0,0.12290297]
[1743974842967,0.012633,79156.0,79154.0,0.12290297]
[1743974843413,0.014633,79157.0,79154.0,0.12290297]
[1743974843549,0.014633,79157.0,79156.0,0.012633]
[1743974843550,0.002,79157.0,79156.0,0.012633]
[1743974843754,0.002,79157.0,79156.0,0.13744382]
[1743974844311,0.002,79157.0,79156.0,0.15260321]
[1743974844873,0.002,79157.0,79156.0,0.19773868]
[1743974845077,1.09216,79205.0,79168.0,0.27979885]
[1743974845078,0.25256,79189.0,79168.0,0.27979885]
[1743974845292,0.012627,79195.0,79188.0,0.26519]
[1743974845487,0.012626,79201.0,79194.0,0.012627]
[1743974845686,0.252523,79201.0,79195.0,0.12290297]
[1743974845892,0.012626,79200.0,79195.0,0.12290297]
[1743974846099,0.252496,79209.0,79198.0,0.252531]
[1743974846317,0.012624,79209.0,79198.0,0.40260082]
[1743974846509,0.265131,79206.0,79198.0,0.40260082]
[1743974846710,0.005,79199.0,79198.0,0.40273629]
[1743974847457,0.017626,79199.0,79198.0,0.12303844]
[1743974847631,0.270154,79199.0,79198.0,0.00013547]
[1743974847944,0.26657522,79199.0,79198.0,0.00013547]
[1743974848346,0.26857522,79199.0,79198.0,0.00013547]
[1743974848959,0.27057522,79199.0,79198.0,0.12303844]
[1743974849550,0.00542122,79199.0,79198.0,0.13566444]
[1743974849728,0.00542122,79199.0,79198.0,0.40273629]
[1743974849934,0.00542122,79199.0,79198.0,0.15020529]
[1743974850132,0.00542122,79199.0,79198.0,0.15273031]
[1743974850458,0.00542122,79199.0,79198.0,0.15020529]
[1743974850685,0.00542122,79199.0,79198.0,0.12556346]
[1743974850936,0.27057522,79199.0,79198.0,0.12303844]
[1743974851119,0.00142122,79199.0,79198.0,0.12303844]
[1743974851343,0.26657522,79199.0,79198.0,0.12303844]
[1743974852085,0.26857522,79199.0,79198.0,0.12303844]
[1743974852290,0.26657522,79199.0,79198.0,0.12303844]
[1743974852514,0.26657522,79199.0,79198.0,0.12203844]
[1743974852733,0.26857522,79199.0,79198.0,0.12203844]
[1743974853149,0.25594922,79199.0,79198.0,0.12203844]
[1743974853350,0.26857522,79199.0,79198.0,0.12203844]
[1743974855012,0.27057522,79199.0,79198.0,0.12203844]
[1743974856191,0.00542122,79199.0,79198.0,0.12203844]
[1743974856452,0.00542122,79199.0,79198.0,0.40173629]
[1743974856683,0.02,79208.0,79202.0,0.252518]
[1743974856684,0.012624,79208.0,79202.0,0.252518]
[1743974856910,0.012624,79208.0,79201.0,0.012626]
[1743974856911,0.012624,79214.0,79208.0,0.012624]
[1743974857155,0.252493,79210.0,79208.0,0.12290297]
[1743974857405,0.34,79209.0,79208.0,0.12290297]
[1743974858325,0.352624,79210.0,79208.0,0.12290297]
[1743974858568,0.34,79210.0,79209.0,0.252496]
[1743974858788,0.34934128,79210.0,79208.0,0.13552697]
[1743974858973,0.34934128,79210.0,79209.0,0.15006782]
[1743974859191,0.012622,79226.0,79216.0,0.012623]
[1743974859517,0.00933086,79226.0,79223.0,0.252451]
[1743974859634,0.19938,79235.0,79228.0,0.27959785]
[1743974859635,0.18676,79235.0,79228.0,0.27959785]
[1743974859831,0.252378,79246.0,79228.0,0.40250082]
[1743974860086,0.01263411,79249.0,79228.0,0.40231118]
[1743974860371,0.01263411,79249.0,79248.0,0.26499]
[1743974860622,0.002,79259.0,79254.0,0.012617]
[1743974860880,0.01154413,79259.0,79255.0,0.12290297]
[1743974861133,0.00245416,79259.0,79258.0,0.27949785]
[1743974861382,0.00245416,79259.0,79258.0,0.40240082]
[1743974862238,0.00245416,79259.0,79258.0,0.13744382]
[1743974862711,0.00245416,79259.0,79243.0,0.012619]
[1743974862712,0.0003358,79242.0,79235.0,0.01454085]
[1743974862993,0.0003358,79242.0,79238.0,0.01454085]
[1743974863224,0.0003358,79242.0,79240.0,0.01454085]
[1743974863426,0.0003358,79242.0,79241.0,0.15006282]
[1743974864995,0.0003358,79242.0,79241.0,0.13744382]
[1743974865832,0.0003358,79242.0,79241.0,0.40345682]
[1743974866040,0.0003358,79242.0,79241.0,0.40245682]
[1743974866501,0.0003358,79242.0,79241.0,0.40345682]
[1743974866765,0.34,79254.0,79253.0,0.252356]
[1743974866999,0.352617,79254.0,79253.0,0.12290297]
[1743974867226,0.60497,79254.0,79253.0,0.12290297]
[1743974867730,0.012617,79254.0,79253.0,0.12290297]
[1743974867928,0.34,79255.0,79253.0,0.12290297]
[1743974868142,0.34,79255.0,79246.0,0.012618]
[1743974868143,0.34,79255.0,79254.0,0.12290297]
[1743974869668,0.004,79255.0,79254.0,0.12290297]
[1743974870131,0.009,79255.0,79254.0,0.12290297]
[1743974872477,0.349,79255.0,79254.0,0.12290297]
[1743974875430,0.012618,79248.0,79247.0,0.01454085]
[1743974875634,0.012619,79241.0,79235.0,0.01454085]
[1743974875857,0.265023,79239.0,79238.0,0.01454085]
[1743974876057,0.265023,79239.0,79238.0,0.13744382]
[1743974876262,0.01262,79239.0,79238.0,0.13744382]
[1743974876823,0.18290695,79240.0,79238.0,0.13744382]
[1743974877043,0.19552595,79240.0,79239.0,0.13744382]
[1743974877465,0.19494872,79240.0,79239.0,0.13744382]
[1743974877973,0.18232972,79240.0,79239.0,0.13744382]
[1743974879101,0.19494872,79240.0,79239.0,0.13744382]
[1743974879586,0.19594872,79240.0,79239.0,0.13744382]
[1743974879931,0.19494872,79240.0,79239.0,0.13744382]
[1743974880126,0.19694872,79240.0,79239.0,0.13744382]
[1743974880333,0.19494872,79240.0,79239.0,0.13744382]
[1743974881756,0.19694872,79240.0,79239.0,0.13744382]
[1743974882201,0.53694872,79240.0,79239.0,0.12290297]
[1743974882406,0.265077,79222.0,79221.0,1.09112]
[1743974882606,0.265077,79222.0,79221.0,1.21402297]
[1743974882939,0.265077,79222.0,79221.0,0.12290297]
[1743974883116,0.265077,79222.0,79221.0,0.13744382]
[1743974883299,0.265077,79222.0,79221.0,0.12290297]
[1743974883505,0.265077,79222.0,79207.0,0.0001678]
[1743974883506,0.265123,79208.0,79207.0,0.0001678]
[1743974883704,0.265123,79208.0,79207.0,0.12307077]
[1743974884048,0.265123,79208.0,79207.0,0.0001678]
[1743974884249,0.265151,79200.0,79199.0,0.00112]
[1743974884451,0.265151,79200.0,79199.0,0.12402297]
[1743974885076,0.605151,79200.0,79199.0,0.00112]
[1743974886546,0.77724868,79200.0,79199.0,0.00112]
[1743974886750,0.34,79200.0,79199.0,0.12402297]
[1743974886954,0.608151,79200.0,79199.0,0.12402297]
[1743974887812,0.605151,79200.0,79199.0,0.12402297]
[1743974888793,0.60487246,79200.0,79199.0,0.12402297]
[1743974889188,0.60987246,79200.0,79199.0,0.12402297]
[1743974889384,0.60487246,79200.0,79199.0,0.12402297]
[1743974889828,0.60987246,79200.0,79199.0,0.12402297]
[1743974890241,0.63316751,79200.0,79199.0,0.12402297]
[1743974891189,0.63300022,79200.0,79199.0,0.12402297]
[1743974891701,0.60970517,79200.0,79199.0,0.12402297]
[1743974892554,0.63297456,79200.0,79199.0,0.12402297]
[1743974893506,0.63297456,79200.0,79199.0,0.00112]
[1743974894726,0.62797456,79200.0,79199.0,0.00112]
[1743974894927,0.605211,79182.0,79181.0,0.002]
[1743974895642,0.605258,79168.0,79167.0,0.0001678]
[1743974895958,0.791418,79168.0,79167.0,0.0001678]
[1743974896181,0.80114168,79168.0,79167.0,0.0001678]
[1743974896389,0.80114168,79168.0,79167.0,8e-07]
[1743974896743,0.80614168,79168.0,79167.0,8e-07]
[1743974897142,0.80114168,79168.0,79167.0,8e-07]
[1743974897369,0.80614168,79168.0,79167.0,8e-07]
[1743974897574,0.80114168,79168.0,79167.0,8e-07]
[1743974897963,0.80614168,79168.0,79167.0,8e-07]
[1743974899221,0.80114168,79168.0,79167.0,8e-07]
[1743974899645,0.80614168,79168.0,79167.0,8e-07]